[Event "*** Titled Tuesday Blitz"]
[Site "Chess.com"]
[Date "2020.05.19"]
[Round "5"]
[White "Zhuu96"]
[Black "Rozum_Ivan"]
[Result "1-0"]
[WhiteElo "2857"]
[BlackElo "2601"]
[TimeControl "180+1"]
[EndTime "12:57:11 PDT"]
[Termination "Zhuu96 won on time"]

1. Nf3 {[%clk 0:03:00.9]} 1... g6 {[%clk 0:02:59.3]} 2. d4 {[%clk 0:03:00.2]}
2... Bg7 {[%clk 0:03:00.2]} 3. e4 {[%clk 0:03:00.2]} 3... d6 {[%clk 0:03:00.6]}
4. c4 {[%clk 0:02:59.4]} 4... Bg4 {[%clk 0:02:57.8]} 5. Be2 {[%clk 0:02:57.4]}
5... Nc6 {[%clk 0:02:56.9]} 6. d5 {[%clk 0:02:55.7]} 6... Bxf3 {[%clk
0:02:55.6]} 7. Bxf3 {[%clk 0:02:55.9]} 7... Nd4 {[%clk 0:02:56.2]} 8. O-O {[%clk
0:02:56.1]} 8... c5 {[%clk 0:02:54.6]} 9. Nc3 {[%clk 0:02:50.3]} 9... e5 {[%clk
0:02:42.6]} 10. dxe6 {[%clk 0:02:49.4]} 10... fxe6 {[%clk 0:02:42.6]} 11. Be3
{[%clk 0:02:30.4]} 11... Ne7 {[%clk 0:02:40]} 12. Bg4 {[%clk 0:02:27.5]} 12...
Nec6 {[%clk 0:02:36.6]} 13. Nb5 {[%clk 0:02:25.6]} 13... Qe7 {[%clk 0:02:30.1]}
14. Qd2 {[%clk 0:01:56.3]} 14... O-O {[%clk 0:02:23.7]} 15. Bg5 {[%clk
0:01:56.1]} 15... Qd7 {[%clk 0:02:20.9]} 16. f4 {[%clk 0:01:50.7]} 16... Rf7
{[%clk 0:02:15.2]} 17. Nc3 {[%clk 0:01:43.6]} 17... Raf8 {[%clk 0:02:13]} 18.
Kh1 {[%clk 0:01:35.6]} 18... a6 {[%clk 0:01:40.5]} 19. Bh4 {[%clk 0:01:24]}
19... b5 {[%clk 0:01:39.6]} 20. cxb5 {[%clk 0:01:22.6]} 20... axb5 {[%clk
0:01:40.5]} 21. Bg3 {[%clk 0:01:17.1]} 21... b4 {[%clk 0:01:20]} 22. Ne2 {[%clk
0:01:13.3]} 22... Ne5 {[%clk 0:01:16.3]} 23. Nxd4 {[%clk 0:01:09.6]} 23... Nxg4
{[%clk 0:01:15.6]} 24. Nf3 {[%clk 0:01:09.3]} 24... Bh6 {[%clk 0:00:53]} 25. h3
{[%clk 0:01:07.8]} 25... Nf6 {[%clk 0:00:49.7]} 26. Rae1 {[%clk 0:01:03.5]}
26... Nh5 {[%clk 0:00:49.1]} 27. Bh2 {[%clk 0:01:03.8]} 27... Bxf4 {[%clk
0:00:48.7]} 28. Bxf4 {[%clk 0:01:03.8]} 28... Nxf4 {[%clk 0:00:48.2]} 29. Ng5
{[%clk 0:01:02.2]} 29... Rf6 {[%clk 0:00:38]} 30. e5 {[%clk 0:01:02.4]} 30...
Rf5 {[%clk 0:00:37.2]} 31. Ne4 {[%clk 0:01:02.5]} 31... Nd5 {[%clk 0:00:19.2]}
32. Rxf5 {[%clk 0:01:00]} 32... Rxf5 {[%clk 0:00:19.8]} 33. exd6 {[%clk
0:00:57.7]} 33... c4 {[%clk 0:00:18.1]} 34. Qd4 {[%clk 0:00:56.1]} 34... c3
{[%clk 0:00:16.9]} 35. bxc3 {[%clk 0:00:56.2]} 35... bxc3 {[%clk 0:00:17.8]} 36.
Rb1 {[%clk 0:00:55.4]} 36... Rf8 {[%clk 0:00:16.9]} 37. Qe5 {[%clk 0:00:48.7]}
37... c2 {[%clk 0:00:16.1]} 38. Rc1 {[%clk 0:00:48.8]} 38... Rc8 {[%clk
0:00:15.4]} 39. Qxd5 {[%clk 0:00:49]} 39... exd5 {[%clk 0:00:15.9]} 40. Nf6+
{[%clk 0:00:49.3]} 40... Kf7 {[%clk 0:00:16.2]} 41. Nxd7 {[%clk 0:00:49.2]}
41... Ke6 {[%clk 0:00:16]} 42. Nb6 {[%clk 0:00:49.3]} 42... Rc6 {[%clk
0:00:14.7]} 43. d7 {[%clk 0:00:49.6]} 43... Ke7 {[%clk 0:00:06.2]} 44. Re1+
{[%clk 0:00:49.1]} 1-0

[Event "*** Titled Tuesday Blitz"]
[Site "Chess.com"]
[Date "2020.05.19"]
[Round "5"]
[White "Supernotar"]
[Black "Mugzyyy"]
[Result "0-1"]
[WhiteElo "2670"]
[BlackElo "2508"]
[TimeControl "180+1"]
[EndTime "12:57:11 PDT"]
[Termination "Mugzyyy won by checkmate"]

1. d4 {[%clk 0:03:00.9]} 1... Nf6 {[%clk 0:02:58.5]} 2. c4 {[%clk 0:03:00.4]}
2... b6 {[%clk 0:02:55.9]} 3. Nf3 {[%clk 0:02:59.7]} 3... Bb7 {[%clk 0:02:56.8]}
4. Nbd2 {[%clk 0:02:59.5]} 4... g6 {[%clk 0:02:56.2]} 5. g3 {[%clk 0:02:59.4]}
5... Bg7 {[%clk 0:02:55.9]} 6. Bg2 {[%clk 0:02:59.8]} 6... O-O {[%clk
0:02:56.1]} 7. O-O {[%clk 0:02:59.8]} 7... e6 {[%clk 0:02:56.5]} 8. b3 {[%clk
0:02:59.6]} 8... d5 {[%clk 0:02:55.9]} 9. Bb2 {[%clk 0:02:59.6]} 9... Ne4 {[%clk
0:02:55.8]} 10. Rc1 {[%clk 0:02:56.9]} 10... a5 {[%clk 0:02:55.6]} 11. a3 {[%clk
0:02:55.3]} 11... a4 {[%clk 0:02:52.8]} 12. b4 {[%clk 0:02:55]} 12... dxc4
{[%clk 0:02:47.9]} 13. Nxc4 {[%clk 0:02:51.8]} 13... b5 {[%clk 0:02:42.8]} 14.
Nce5 {[%clk 0:02:49.3]} 14... Bd5 {[%clk 0:02:41.2]} 15. Ne1 {[%clk 0:02:31.5]}
15... Nd6 {[%clk 0:02:30.2]} 16. f3 {[%clk 0:02:24.1]} 16... Bxe5 {[%clk
0:02:23.1]} 17. dxe5 {[%clk 0:02:23.9]} 17... Bb3 {[%clk 0:02:24]} 18. Qd2
{[%clk 0:02:06.1]} 18... Nc4 {[%clk 0:02:23.1]} 19. Qc3 {[%clk 0:02:06.4]} 19...
c5 {[%clk 0:02:16.1]} 20. f4 {[%clk 0:02:04]} 20... Ra7 {[%clk 0:02:12.4]} 21.
bxc5 {[%clk 0:02:01.4]} 21... Rc7 {[%clk 0:02:09.2]} 22. Nd3 {[%clk 0:02:01.3]}
22... Ne3 {[%clk 0:02:07.8]} 23. Rfe1 {[%clk 0:01:49.9]} 23... Nxg2 {[%clk
0:02:05.9]} 24. Kxg2 {[%clk 0:01:50.3]} 24... Na6 {[%clk 0:02:04.3]} 25. e4
{[%clk 0:01:41]} 25... Qe7 {[%clk 0:01:57.8]} 26. f5 {[%clk 0:01:37.7]} 26...
Rfc8 {[%clk 0:01:53.5]} 27. f6 {[%clk 0:01:37.4]} 27... Qf8 {[%clk 0:01:49.8]}
28. Qd2 {[%clk 0:01:31.5]} 28... Bc4 {[%clk 0:01:42.7]} 29. Rcd1 {[%clk
0:01:19.2]} 29... Nxc5 {[%clk 0:01:31.8]} 30. Nxc5 {[%clk 0:01:17.4]} 30... Rxc5
{[%clk 0:01:32.7]} 31. Qe3 {[%clk 0:01:12.5]} 31... Bb3 {[%clk 0:01:26.3]} 32.
Rc1 {[%clk 0:01:08.2]} 32... Rc2+ {[%clk 0:01:24.3]} 33. Rxc2 {[%clk 0:01:08.2]}
33... Rxc2+ {[%clk 0:01:24.7]} 34. Re2 {[%clk 0:01:08.2]} 34... Qc8 {[%clk
0:01:15.2]} 35. Rxc2 {[%clk 0:00:56.7]} 35... Qxc2+ {[%clk 0:01:16.1]} 36. Kh3
{[%clk 0:00:56.5]} 36... Bc4 {[%clk 0:01:07.4]} 37. Qd4 {[%clk 0:00:36.3]} 37...
h5 {[%clk 0:00:35]} 38. Bc1 {[%clk 0:00:12.7]} 38... g5 {[%clk 0:00:19.5]} 39.
Bxg5 {[%clk 0:00:03.1]} 39... Bf1+ {[%clk 0:00:18.5]} 40. Kh4 {[%clk 0:00:03.6]}
40... Qxh2# {[%clk 0:00:19.4]} 0-1

[Event "*** Titled Tuesday Blitz"]
[Site "Chess.com"]
[Date "2020.05.19"]
[Round "5"]
[White "ZverevLev"]
[Black "noblerone"]
[Result "1-0"]
[WhiteElo "2181"]
[BlackElo "2444"]
[TimeControl "180+1"]
[EndTime "12:57:12 PDT"]
[Termination "ZverevLev won by checkmate"]

1. e4 {[%clk 0:03:00.4]} 1... c5 {[%clk 0:02:59.5]} 2. Nf3 {[%clk 0:02:58.8]}
2... e6 {[%clk 0:02:59.9]} 3. d4 {[%clk 0:02:58.4]} 3... cxd4 {[%clk 0:03:00.8]}
4. Nxd4 {[%clk 0:02:58.5]} 4... Qb6 {[%clk 0:03:01.3]} 5. Nb3 {[%clk 0:02:53.3]}
5... Qc7 {[%clk 0:03:00.9]} 6. Nc3 {[%clk 0:02:52.3]} 6... a6 {[%clk 0:03:00.8]}
7. Bd3 {[%clk 0:02:50.6]} 7... b5 {[%clk 0:02:58.8]} 8. O-O {[%clk 0:02:49.1]}
8... Bb7 {[%clk 0:02:57.6]} 9. Be3 {[%clk 0:02:49.1]} 9... Nf6 {[%clk
0:02:57.2]} 10. f3 {[%clk 0:02:47.6]} 10... d5 {[%clk 0:02:52.4]} 11. exd5
{[%clk 0:02:44.7]} 11... Nxd5 {[%clk 0:02:51.8]} 12. Nxd5 {[%clk 0:02:44]} 12...
Bxd5 {[%clk 0:02:52.7]} 13. Be4 {[%clk 0:02:43.4]} 13... Bxe4 {[%clk 0:02:43.7]}
14. fxe4 {[%clk 0:02:44.3]} 14... Bd6 {[%clk 0:02:33.1]} 15. Qh5 {[%clk
0:02:29.5]} 15... O-O {[%clk 0:02:19]} 16. Rad1 {[%clk 0:02:26.1]} 16... Nc6
{[%clk 0:01:52.8]} 17. Kh1 {[%clk 0:02:22]} 17... Be5 {[%clk 0:01:28]} 18. Nc5
{[%clk 0:02:15.5]} 18... g6 {[%clk 0:01:15.9]} 19. Qh3 {[%clk 0:02:12.7]} 19...
Rfd8 {[%clk 0:00:46.6]} 20. Bh6 {[%clk 0:01:58.4]} 20... Bxb2 {[%clk 0:00:38.1]}
21. c3 {[%clk 0:01:29.9]} 21... Ne5 {[%clk 0:00:21.3]} 22. Nxe6 {[%clk
0:01:16.6]} 22... fxe6 {[%clk 0:00:18.5]} 23. Qxe6+ {[%clk 0:01:17.1]} 23... Nf7
{[%clk 0:00:18]} 24. Rxd8+ {[%clk 0:01:01.2]} 24... Rxd8 {[%clk 0:00:18.9]} 25.
Bg5 {[%clk 0:00:54]} 25... Bxc3 {[%clk 0:00:17.5]} 26. Bxd8 {[%clk 0:00:52.3]}
26... Qc4 {[%clk 0:00:12.9]} 27. Qe8+ {[%clk 0:00:48.6]} 27... Kg7 {[%clk
0:00:12.8]} 28. Rc1 {[%clk 0:00:44.3]} 28... b4 {[%clk 0:00:09.3]} 29. e5 {[%clk
0:00:40.5]} 29... Qf4 {[%clk 0:00:05.5]} 30. Bf6+ {[%clk 0:00:39]} 30... Kh6
{[%clk 0:00:06]} 31. Qf8+ {[%clk 0:00:36.4]} 31... Kh5 {[%clk 0:00:06]} 32. Rg1
{[%clk 0:00:35.5]} 32... Nxe5 {[%clk 0:00:04.7]} 33. Qg7 {[%clk 0:00:28.5]}
33... h6 {[%clk 0:00:03.1]} 34. Qe7 {[%clk 0:00:21.6]} 34... Qf5 {[%clk
0:00:01.3]} 35. Bxe5 {[%clk 0:00:20]} 35... Qxe5 {[%clk 0:00:02.2]} 36. g4#
{[%clk 0:00:19.2]} 1-0

[Event "*** Titled Tuesday Blitz"]
[Site "Chess.com"]
[Date "2020.05.19"]
[Round "5"]
[White "Fandorine"]
[Black "EvgenyRomanov"]
[Result "1-0"]
[WhiteElo "2886"]
[BlackElo "2684"]
[TimeControl "180+1"]
[EndTime "12:57:13 PDT"]
[Termination "Fandorine won on time"]

1. e4 {[%clk 0:03:00.9]} 1... e6 {[%clk 0:02:55]} 2. d4 {[%clk 0:02:43.5]} 2...
d5 {[%clk 0:02:55.9]} 3. exd5 {[%clk 0:02:43.7]} 3... exd5 {[%clk 0:02:55.2]} 4.
Nf3 {[%clk 0:02:44.3]} 4... Bd6 {[%clk 0:02:50.3]} 5. c4 {[%clk 0:02:44.3]} 5...
c6 {[%clk 0:02:47]} 6. cxd5 {[%clk 0:02:33.4]} 6... cxd5 {[%clk 0:02:44.2]} 7.
Bd3 {[%clk 0:02:32.9]} 7... Nc6 {[%clk 0:02:37]} 8. O-O {[%clk 0:02:30.9]} 8...
h6 {[%clk 0:02:32.5]} 9. Nc3 {[%clk 0:02:29.4]} 9... Nge7 {[%clk 0:02:31.8]} 10.
a3 {[%clk 0:02:24.6]} 10... O-O {[%clk 0:02:23.1]} 11. h3 {[%clk 0:02:24.7]}
11... Be6 {[%clk 0:02:12.3]} 12. Re1 {[%clk 0:02:20.2]} 12... Re8 {[%clk
0:02:07.6]} 13. Bc2 {[%clk 0:02:07.3]} 13... Rc8 {[%clk 0:01:50.4]} 14. Be3
{[%clk 0:02:02.6]} 14... Bb8 {[%clk 0:01:47.2]} 15. Qd2 {[%clk 0:01:53.9]} 15...
Bf5 {[%clk 0:01:31.1]} 16. Rad1 {[%clk 0:01:42.9]} 16... Bxc2 {[%clk 0:01:28.6]}
17. Qxc2 {[%clk 0:01:43.8]} 17... Qd7 {[%clk 0:01:26.4]} 18. Qd3 {[%clk
0:01:33.3]} 18... Nf5 {[%clk 0:01:23.2]} 19. Bc1 {[%clk 0:01:28.3]} 19... a6
{[%clk 0:01:19.3]} 20. Na4 {[%clk 0:01:05.7]} 20... Ba7 {[%clk 0:00:33.1]} 21.
Nc5 {[%clk 0:01:03.6]} 21... Bxc5 {[%clk 0:00:32.6]} 22. dxc5 {[%clk 0:01:04.5]}
22... Re6 {[%clk 0:00:18.8]} 23. Rxe6 {[%clk 0:00:50.5]} 23... fxe6 {[%clk
0:00:17.5]} 24. b4 {[%clk 0:00:51]} 24... Rf8 {[%clk 0:00:16.5]} 25. Bb2 {[%clk
0:00:51.4]} 25... Qf7 {[%clk 0:00:15.7]} 26. Ne5 {[%clk 0:00:47.1]} 26... Nxe5
{[%clk 0:00:14.8]} 27. Bxe5 {[%clk 0:00:48]} 27... Nh4 {[%clk 0:00:13.7]} 28.
Qg3 {[%clk 0:00:33.3]} 28... Nf5 {[%clk 0:00:13.5]} 29. Qg4 {[%clk 0:00:28.7]}
29... g5 {[%clk 0:00:13.2]} 30. Re1 {[%clk 0:00:25.9]} 30... Qg6 {[%clk
0:00:13]} 31. f4 {[%clk 0:00:21.8]} 31... Kh7 {[%clk 0:00:07.3]} 32. Bc3 {[%clk
0:00:15]} 32... gxf4 {[%clk 0:00:05.7]} 33. Qxg6+ {[%clk 0:00:12.2]} 33... Kxg6
{[%clk 0:00:04.5]} 34. Rxe6+ {[%clk 0:00:13.1]} 34... Kg5 {[%clk 0:00:04]} 35.
Re5 {[%clk 0:00:11.2]} 1-0

[Event "*** Titled Tuesday Blitz"]
[Site "Chess.com"]
[Date "2020.05.19"]
[Round "5"]
[White "MPGM"]
[Black "yarosavich"]
[Result "1-0"]
[WhiteElo "2537"]
[BlackElo "2681"]
[TimeControl "180+1"]
[EndTime "12:57:13 PDT"]
[Termination "MPGM won by resignation"]

1. d4 {[%clk 0:02:55.6]} 1... d5 {[%clk 0:02:59.3]} 2. c4 {[%clk 0:02:54.5]}
2... e6 {[%clk 0:02:59.4]} 3. Nc3 {[%clk 0:02:53.1]} 3... Be7 {[%clk 0:02:59.9]}
4. cxd5 {[%clk 0:02:53]} 4... exd5 {[%clk 0:02:59.6]} 5. Bf4 {[%clk 0:02:53.7]}
5... c6 {[%clk 0:03:00.2]} 6. e3 {[%clk 0:02:53.9]} 6... Bf5 {[%clk 0:03:00.3]}
7. h4 {[%clk 0:02:52]} 7... Nd7 {[%clk 0:02:57]} 8. h5 {[%clk 0:02:46.6]} 8...
g5 {[%clk 0:02:30.4]} 9. hxg6 {[%clk 0:02:40.8]} 9... Bxg6 {[%clk 0:02:29.6]}
10. Bd3 {[%clk 0:02:37.4]} 10... Ngf6 {[%clk 0:02:19.5]} 11. Nf3 {[%clk
0:02:36.8]} 11... Rg8 {[%clk 0:02:07.7]} 12. Bxg6 {[%clk 0:02:25.7]} 12... hxg6
{[%clk 0:02:07.5]} 13. Qb3 {[%clk 0:02:20.1]} 13... Qb6 {[%clk 0:02:07.1]} 14.
Ne5 {[%clk 0:01:52.6]} 14... Nxe5 {[%clk 0:02:06.3]} 15. Bxe5 {[%clk 0:01:51.6]}
15... Qxb3 {[%clk 0:01:59.6]} 16. axb3 {[%clk 0:01:51.1]} 16... Nd7 {[%clk
0:01:57.1]} 17. Bg3 {[%clk 0:01:46.8]} 17... Bb4 {[%clk 0:01:54.8]} 18. Ke2
{[%clk 0:01:46.6]} 18... Ke7 {[%clk 0:01:54.6]} 19. Kd3 {[%clk 0:01:43.5]} 19...
Bd6 {[%clk 0:01:54.3]} 20. Bxd6+ {[%clk 0:01:41.6]} 20... Kxd6 {[%clk
0:01:54.7]} 21. Rh7 {[%clk 0:01:41.6]} 21... Ke6 {[%clk 0:01:43.4]} 22. f3
{[%clk 0:01:37.8]} 22... Nf6 {[%clk 0:01:41.9]} 23. Rh4 {[%clk 0:01:35]} 23...
g5 {[%clk 0:01:39.9]} 24. Rh6 {[%clk 0:01:33.4]} 24... Ke7 {[%clk 0:01:40.4]}
25. b4 {[%clk 0:01:21.4]} 25... a6 {[%clk 0:01:37.2]} 26. Rah1 {[%clk
0:01:20.9]} 26... Ne8 {[%clk 0:01:28.4]} 27. e4 {[%clk 0:01:17.5]} 27... dxe4+
{[%clk 0:01:27.7]} 28. fxe4 {[%clk 0:01:17.8]} 28... Rd8 {[%clk 0:01:22.2]} 29.
e5 {[%clk 0:01:12]} 29... Ng7 {[%clk 0:01:20.4]} 30. Ke4 {[%clk 0:00:44.2]}
30... Ne8 {[%clk 0:00:19.5]} 31. d5 {[%clk 0:00:41.2]} 31... cxd5+ {[%clk
0:00:20]} 32. Nxd5+ {[%clk 0:00:41.2]} 32... Kd7 {[%clk 0:00:20.7]} 33. Rc1
{[%clk 0:00:34.2]} 33... Rg7 {[%clk 0:00:16.2]} 34. Rb6 {[%clk 0:00:20.3]} 34...
Rb8 {[%clk 0:00:15.4]} 35. Kf5 {[%clk 0:00:19]} 35... Rh7 {[%clk 0:00:13.4]} 36.
Nf6+ {[%clk 0:00:12.6]} 36... Nxf6 {[%clk 0:00:13.5]} 37. Rxf6 {[%clk
0:00:12.9]} 37... Ke7 {[%clk 0:00:13.1]} 38. Rc7+ {[%clk 0:00:11.8]} 38... Kf8
{[%clk 0:00:13.5]} 39. e6 {[%clk 0:00:09.5]} 39... Rd8 {[%clk 0:00:12.4]} 40.
e7+ {[%clk 0:00:08.1]} 1-0

[Event "*** Titled Tuesday Blitz"]
[Site "Chess.com"]
[Date "2020.05.19"]
[Round "5"]
[White "1stSecond"]
[Black "Mykola-Bortnyk"]
[Result "1-0"]
[WhiteElo "2737"]
[BlackElo "2878"]
[TimeControl "180+1"]
[EndTime "12:57:14 PDT"]
[Termination "1stSecond won by checkmate"]

1. Nf3 {[%clk 0:02:57.4]} 1... c5 {[%clk 0:02:58.2]} 2. g3 {[%clk 0:02:55.6]}
2... Nc6 {[%clk 0:02:56.7]} 3. Bg2 {[%clk 0:02:55.7]} 3... e5 {[%clk 0:02:56.8]}
4. O-O {[%clk 0:02:55.2]} 4... d6 {[%clk 0:02:57]} 5. c3 {[%clk 0:02:53]} 5...
f5 {[%clk 0:02:53.9]} 6. d4 {[%clk 0:02:38.8]} 6... cxd4 {[%clk 0:02:50.3]} 7.
cxd4 {[%clk 0:02:38.9]} 7... e4 {[%clk 0:02:50.8]} 8. Ne1 {[%clk 0:02:24.3]}
8... Nf6 {[%clk 0:02:48.8]} 9. d5 {[%clk 0:02:12.5]} 9... Ne5 {[%clk 0:02:44.7]}
10. Nc3 {[%clk 0:02:11.6]} 10... Be7 {[%clk 0:02:41.6]} 11. Nc2 {[%clk
0:02:11.5]} 11... O-O {[%clk 0:02:36.9]} 12. Nd4 {[%clk 0:02:10.8]} 12... Bd7
{[%clk 0:02:35.3]} 13. Qb3 {[%clk 0:01:33]} 13... b5 {[%clk 0:02:18.5]} 14. Bf4
{[%clk 0:01:18.7]} 14... Kh8 {[%clk 0:02:10.1]} 15. Ne6 {[%clk 0:01:11]} 15...
Bxe6 {[%clk 0:02:07.5]} 16. dxe6 {[%clk 0:01:11.9]} 16... Rb8 {[%clk 0:02:03.7]}
17. Rfd1 {[%clk 0:01:04.7]} 17... Ng6 {[%clk 0:01:48.4]} 18. Be3 {[%clk
0:00:57.3]} 18... a5 {[%clk 0:01:34.8]} 19. a4 {[%clk 0:00:57.1]} 19... bxa4
{[%clk 0:01:29.2]} 20. Qxa4 {[%clk 0:00:57.2]} 20... Qc8 {[%clk 0:01:24.5]} 21.
Qa2 {[%clk 0:00:51.5]} 21... Rd8 {[%clk 0:00:55.7]} 22. Bh3 {[%clk 0:00:50.5]}
22... f4 {[%clk 0:00:52]} 23. gxf4 {[%clk 0:00:41.9]} 23... Nh5 {[%clk 0:00:51]}
24. Nd5 {[%clk 0:00:41]} 24... Bf6 {[%clk 0:00:47.3]} 25. Bg4 {[%clk 0:00:32.1]}
25... Rxb2 {[%clk 0:00:43.5]} 26. Qxa5 {[%clk 0:00:31.9]} 26... Re8 {[%clk
0:00:31.8]} 27. Bxh5 {[%clk 0:00:26.6]} 27... Rxe6 {[%clk 0:00:19.4]} 28. Bg4
{[%clk 0:00:25.9]} 28... Rb8 {[%clk 0:00:17.5]} 29. h3 {[%clk 0:00:23.3]} 29...
Bxa1 {[%clk 0:00:16.6]} 30. Qxa1 {[%clk 0:00:21.8]} 30... h5 {[%clk 0:00:16.4]}
31. Bf5 {[%clk 0:00:19.5]} 31... Nh4 {[%clk 0:00:16.8]} 32. Bxe6 {[%clk
0:00:18.7]} 32... Qxe6 {[%clk 0:00:17.7]} 33. Kh2 {[%clk 0:00:18.4]} 33... Rb7
{[%clk 0:00:10.6]} 34. Qa8+ {[%clk 0:00:17.2]} 34... Kh7 {[%clk 0:00:10.6]} 35.
Qxb7 {[%clk 0:00:17.2]} 35... Nf5 {[%clk 0:00:09.6]} 36. Rg1 {[%clk 0:00:16.5]}
36... h4 {[%clk 0:00:08.6]} 37. Rg5 {[%clk 0:00:15.4]} 37... Kh6 {[%clk
0:00:08.3]} 38. Bd4 {[%clk 0:00:14.5]} 38... g6 {[%clk 0:00:07.8]} 39. Rxf5
{[%clk 0:00:11.7]} 39... gxf5 {[%clk 0:00:06.6]} 40. Qg7+ {[%clk 0:00:11.7]}
40... Kh5 {[%clk 0:00:07.5]} 41. Qg5# {[%clk 0:00:12.3]} 1-0

[Event "*** Titled Tuesday Blitz"]
[Site "Chess.com"]
[Date "2020.05.19"]
[Round "5"]
[White "ajian"]
[Black "Nayemhaque22"]
[Result "0-1"]
[WhiteElo "2317"]
[BlackElo "2176"]
[TimeControl "180+1"]
[EndTime "12:57:14 PDT"]
[Termination "Nayemhaque22 won on time"]

1. d4 {[%clk 0:03:00.9]} 1... Nf6 {[%clk 0:02:59.4]} 2. c4 {[%clk 0:03:01]} 2...
e6 {[%clk 0:02:59.3]} 3. Nc3 {[%clk 0:03:01]} 3... Bb4 {[%clk 0:02:59.6]} 4. Qc2
{[%clk 0:03:01.4]} 4... d5 {[%clk 0:02:56]} 5. cxd5 {[%clk 0:03:01.2]} 5... exd5
{[%clk 0:02:55.6]} 6. Bg5 {[%clk 0:03:00.8]} 6... h6 {[%clk 0:02:55.9]} 7. Bh4
{[%clk 0:03:00.7]} 7... O-O {[%clk 0:02:54.4]} 8. e3 {[%clk 0:03:00.2]} 8... Be6
{[%clk 0:02:53.9]} 9. Bd3 {[%clk 0:02:59.7]} 9... c6 {[%clk 0:02:52.8]} 10. Ne2
{[%clk 0:02:58.4]} 10... Nbd7 {[%clk 0:02:52.5]} 11. O-O {[%clk 0:02:55.5]}
11... a5 {[%clk 0:02:47.6]} 12. Rab1 {[%clk 0:02:42.2]} 12... Re8 {[%clk
0:02:45.9]} 13. Rfc1 {[%clk 0:02:35.8]} 13... Rc8 {[%clk 0:02:43]} 14. Bg3
{[%clk 0:02:33.3]} 14... Nh5 {[%clk 0:02:38]} 15. a3 {[%clk 0:02:28.1]} 15...
Nxg3 {[%clk 0:02:35.6]} 16. Nxg3 {[%clk 0:02:24.5]} 16... Bd6 {[%clk 0:02:31.8]}
17. b4 {[%clk 0:02:23.7]} 17... Nf6 {[%clk 0:02:17.1]} 18. Na4 {[%clk
0:02:15.8]} 18... b5 {[%clk 0:02:06.5]} 19. Nc5 {[%clk 0:02:11.8]} 19... Bxc5
{[%clk 0:02:02.7]} 20. Qxc5 {[%clk 0:02:08.9]} 20... a4 {[%clk 0:01:59.4]} 21.
Qc2 {[%clk 0:02:03.3]} 21... Nd7 {[%clk 0:01:55.8]} 22. Qd1 {[%clk 0:01:54.5]}
22... Nb6 {[%clk 0:01:54.3]} 23. Qf3 {[%clk 0:01:30.6]} 23... Qg5 {[%clk
0:01:45.1]} 24. e4 {[%clk 0:01:23.1]} 24... Bg4 {[%clk 0:01:35.2]} 25. Qe3
{[%clk 0:00:51.7]} 25... Qxe3 {[%clk 0:01:34.1]} 26. fxe3 {[%clk 0:00:52.6]}
26... dxe4 {[%clk 0:01:27.5]} 27. Nxe4 {[%clk 0:00:39]} 27... Bf5 {[%clk
0:01:26.4]} 28. Nd6 {[%clk 0:00:17.8]} 28... Bxd3 {[%clk 0:01:25.5]} 29. Nxe8
{[%clk 0:00:17.9]} 29... Bxb1 {[%clk 0:01:22.3]} 30. Nd6 {[%clk 0:00:15.4]}
30... Rd8 {[%clk 0:01:21.8]} 31. Nb7 {[%clk 0:00:15.5]} 31... Rb8 {[%clk
0:01:20]} 32. Na5 {[%clk 0:00:10.9]} 32... Be4 {[%clk 0:01:17.1]} 33. Nxc6
{[%clk 0:00:09.3]} 33... Bxc6 {[%clk 0:01:15.2]} 34. Rxc6 {[%clk 0:00:10.2]}
34... Nc4 {[%clk 0:01:14.4]} 35. d5 {[%clk 0:00:09.4]} 35... Rd8 {[%clk
0:01:07]} 36. e4 {[%clk 0:00:08.2]} 36... Nxa3 {[%clk 0:01:04.8]} 37. Rb6 {[%clk
0:00:07.8]} 37... Kf8 {[%clk 0:00:51]} 38. Kf2 {[%clk 0:00:07.6]} 38... Ke7
{[%clk 0:00:46.9]} 39. Ke2 {[%clk 0:00:07.9]} 39... Rd7 {[%clk 0:00:44.4]} 40.
Kd3 {[%clk 0:00:06.9]} 40... Ra7 {[%clk 0:00:40.3]} 41. Kd4 {[%clk 0:00:04.9]}
41... Nc2+ {[%clk 0:00:35.9]} 42. Kc5 {[%clk 0:00:04.7]} 42... a3 {[%clk
0:00:35.1]} 43. d6+ {[%clk 0:00:03.4]} 43... Kd7 {[%clk 0:00:34.7]} 44. Rxb5
{[%clk 0:00:01.1]} 44... a2 {[%clk 0:00:33.7]} 0-1